lending/lending_fUSD_20250409
["ID","MTS","AMOUNT","RATE_DAILY","PERIOD"]
[357573457,1744186677905,50000.0,0.00044078,30]
[357573458,1744186682121,50000.0,0.00044078,31]
[357573459,1744186685519,50000.0,0.00044078,32]
[357573460,1744186689080,50000.0,0.00044078,33]
[357573461,1744186694537,50000.0,0.00044078,34]
[357573462,1744186725191,586.30067849,0.00028429,30]
[357573484,1744186819778,150.26238,0.000273,39]
[357573486,1744186823498,150.26238,0.000298,44]
[357573487,1744186844357,2040.20530072,0.00044078,30]
[357573491,1744186894018,5069.11,0.00044078,120]
[357573521,1744186963106,150.0,0.00044078,30]
[357573533,1744187029026,157.38909652,0.00044078,120]
[357573536,1744187066469,-4149.937,0.000196,2]
[357573537,1744187066490,-300.0,0.00019899,2]
[357573538,1744187066510,-9500.4018,0.000199,2]
[357573539,1744187066531,-453.32525083,0.000199,2]
[357573540,1744187066552,-188.03297073,0.0001999,2]
[357573541,1744187066572,-151.0,0.00019999,2]
[357573542,1744187066593,-335.9665229,0.00019999,2]
[357573543,1744187066614,-315.78491973,0.00019999,2]
[357573544,1744187066636,-698273.55153581,0.0002,2]
[357573546,1744187111438,-1754.43250927,0.000154,2]
[357573547,1744187111460,-5226.68845791,0.000199,2]
[357573548,1744187111484,-700691.87903282,0.0002,2]
[357573554,1744187135117,-1842.082487,0.0002,2]
[357573555,1744187151449,-2353.57771396,0.00019,2]
[357573556,1744187151469,-26013.06163972,0.00019998,2]
[357573557,1744187151492,-344279.56649616,0.0002,2]
[357573558,1744187151513,-500.0,0.0002,2]
[357573559,1744187151534,-500.0,0.0002,2]
[357573560,1744187151553,-150.0,0.0002,2]
[357573561,1744187151574,-3718.00987877,0.0002,2]
[357573562,1744187151597,-151.5,0.0002,2]
[357573563,1744187151618,-151.5,0.0002,2]
[357573564,1744187151638,-151.5,0.0002,2]
[357573565,1744187151659,-151.5,0.0002,2]
[357573566,1744187151681,-210894.78427139,0.0002,2]
[357573570,1744187203715,-1457.153555,0.0001989,2]
[357573571,1744187203737,-4514.90195986,0.0001999,2]
[357573572,1744187203759,-300.0,0.00019999,2]
[357573573,1744187203782,-715343.94448514,0.0002,2]
[357573584,1744187227121,-163.02355415,0.0001991,2]
[357573585,1744187227142,-300.0,0.00019999,2]
[357573586,1744187227164,-712.17394046,0.00019999,2]
[357573587,1744187242939,-563.56033669,0.00015,2]
[357573588,1744187242963,-200.0,0.000198,7]
[357573589,1744187242987,-500.0,0.000199,7]
[357573590,1744187243007,-672.75137276,0.000199,2]
[357573591,1744187243028,-137.82605954,0.00019999,2]
[357573592,1744187243049,-296.49268158,0.00019999,2]
[357573593,1744187243072,-308831.36954943,0.0002,2]
[357573594,1744187244079,-1594.4741768,0.0002,2]
[357573595,1744187267540,-250.0,0.00019,2]
[357573596,1744187267560,-7132.886626,0.000199,2]
[357573597,1744187267583,-163226.113374,0.0002,2]
[357573598,1744187270913,160.18030613,0.00028,120]
[357573604,1744187318617,182.06692658,0.00014999,2]
[357573605,1744187328141,640.81154111,0.0002,90]
[357573606,1744187330839,8812.53040841,0.0003,30]
[357573609,1744187337410,-38.98251723,0.00014999,2]
[357573610,1744187337431,-235.17656603,0.00014999,2]
[357573611,1744187337452,-500.0,0.00014999,2]
[357573612,1744187337472,-208.05835475,0.00014999,2]
[357573613,1744187337494,-9017.78256199,0.00015,2]
[357573614,1744187338081,-10000.0,0.00015,2]
[357573615,1744187338484,-10000.0,0.00015,2]
[357573616,1744187338836,-10000.0,0.00015,2]
[357573617,1744187339158,-10000.0,0.00015,2]
[357573618,1744187339493,-10000.0,0.00015,2]
[357573619,1744187339852,-10000.0,0.00015,2]
[357573620,1744187340500,-10000.0,0.00015,2]
[357573621,1744187340762,-10000.0,0.00015,2]
[357573622,1744187340861,-10000.0,0.00015,2]
[357573623,1744187341211,-10000.0,0.00015,2]
[357573624,1744187341607,-10000.0,0.00015,2]
[357573625,1744187341951,-10000.0,0.00015,2]
[357573627,1744187342306,-10000.0,0.00015,2]
[357573628,1744187342689,-10000.0,0.00015,2]
[357573629,1744187343008,-10000.0,0.00015,2]
[357573630,1744187343358,-10000.0,0.00015,2]
[357573631,1744187343690,-10000.0,0.00015,2]
[357573632,1744187344162,-10000.0,0.00015,2]
[357573634,1744187344960,-10000.0,0.00015,2]
[357573635,1744187345328,-10000.0,0.00015,2]
[357573636,1744187345910,-10000.0,0.00015,2]
[357573637,1744187346407,-10000.0,0.00015,2]
[357573638,1744187346562,-10000.0,0.00015,2]
[357573639,1744187347060,-10000.0,0.00015,2]
[357573640,1744187347231,-10000.0,0.00015,2]
[357573641,1744187347569,-10000.0,0.00015,2]
[357573642,1744187347662,-10000.0,0.00015,2]
[357573643,1744187348012,-10000.0,0.00015,2]
[357573644,1744187348343,-10000.0,0.00015,2]
[357573645,1744187348700,-10000.0,0.00015,2]
[357573646,1744187349078,-10000.0,0.00015,2]
[357573647,1744187349438,-10000.0,0.00015,2]
[357573648,1744187349812,-10000.0,0.00015,2]
[357573649,1744187350182,-10000.0,0.00015,2]
[357573650,1744187350219,-1631.41344519,0.00015,2]
[357573651,1744187350571,-10000.0,0.00015,2]
[357573652,1744187350893,-10000.0,0.00015,2]
[357573653,1744187351242,-10000.0,0.00015,2]
[357573654,1744187351571,-10000.0,0.00015,2]
[357573655,1744187351940,-10000.0,0.00015,2]
[357573656,1744187352320,-10000.0,0.00015,2]
[357573657,1744187352663,-10000.0,0.00015,2]
[357573658,1744187352994,-10000.0,0.00015,2]
[357573659,1744187353385,-10000.0,0.00015,2]
[357573661,1744187353770,-10000.0,0.00015,2]
[357573662,1744187354566,-10000.0,0.00015,2]
[357573664,1744187355057,-10000.0,0.00015,2]
[357573665,1744187355518,-10000.0,0.00015,2]
[357573666,1744187355836,-10000.0,0.00015,2]
[357573667,1744187356352,-10000.0,0.00015,2]
[357573669,1744187361121,-1000.0,0.00015,2]
[357573670,1744187361488,-1000.0,0.00015,2]
[357573671,1744187361812,-1000.0,0.00015,2]
[357573672,1744187362187,-1000.0,0.00015,2]
[357573673,1744187362542,-1000.0,0.00015,2]
[357573674,1744187362965,-1000.0,0.00015,2]
[357573675,1744187363571,-1000.0,0.00015,2]
[357573676,1744187363816,-1000.0,0.00015,2]
[357573677,1744187364216,-1000.0,0.00015,2]
[357573678,1744187365138,-1000.0,0.00015,2]
[357573679,1744187369689,-10000.0,0.00015,2]
[357573680,1744187370044,-10000.0,0.00015,2]
[357573681,1744187370404,-10000.0,0.00015,2]
[357573682,1744187371004,-10000.0,0.00015,2]
[357573683,1744187371282,-10000.0,0.00015,2]
[357573684,1744187371623,-10000.0,0.00015,2]
[357573685,1744187372014,-10000.0,0.00015,2]
[357573689,1744187392422,-8053.58888993,0.00015,2]
[357573691,1744187392487,-7404.63467302,0.00015,2]
[357573697,1744187408463,-315.14881894,0.00014985,2]
[357573701,1744187432031,5500.0,0.0003,30]
[357573703,1744187432276,-3598.82727071,0.00014985,2]
[357573704,1744187432286,-150.0,0.00014999,2]
[357573705,1744187432296,-384.57495797,0.00015,2]
[357573709,1744187438778,-258.44,0.00015,2]
[357573710,1744187438815,-66.27550516,0.00015,2]
[357573721,1744187440347,-257.58368765,0.00015,2]
[357573722,1744187440528,-2941.79999998,0.00015,2]
[357573723,1744187440691,-213.6395801,0.00015,2]
[357573724,1744187440762,-129.10318831,0.00015,2]
[357573725,1744187440781,-488.87401726,0.00015,2]
[357573726,1744187440793,-30216.14022228,0.00015,2]
[357573758,1744187443534,-319.29275079,0.00015,2]
[357573777,1744187446251,-296.48127266,0.00015,2]
[357573778,1744187446813,-3288.9839629,0.00015,2]
[357573779,1744187446827,-7093.40139031,0.00015,2]
[357573781,1744187447129,-278.74590584,0.00015,2]
[357573782,1744187447149,-1949.68989129,0.00015,2]
[357573783,1744187447160,-774.26,0.00015,2]
[357573785,1744187467551,-300.0,0.00014999,2]
[357573786,1744187467574,-713646.0,0.00015,2]
[357573788,1744187499538,-3237.00416082,0.0001499,2]
[357573789,1744187522106,-300.0,0.00014989,2]
[357573795,1744187565167,427.77777,0.00027,120]
[357573798,1744187578159,586.0,0.00032,120]
[357573799,1744187580272,-6091.17580511,0.000149,2]
[357573800,1744187580294,-12244.44594715,0.0001499,2]
[357573801,1744187580316,-138008.344751,0.00015,2]
[357573802,1744187580337,-255.0,0.00016124,2]
[357573803,1744187580358,-563.08999325,0.00016124,2]
[357573804,1744187580379,-420.0,0.00016405,2]
[357573805,1744187580400,-250.0,0.00016489,2]
[357573806,1744187580421,-250.0,0.000165,2]
[357573807,1744187580442,-432.59699649,0.00017019,2]
[357573808,1744187580465,-396.0,0.00017339,2]
[357573809,1744187580490,-587.0,0.00017954,2]
[357573810,1744187580513,-513.0,0.0001965,2]
[357573811,1744187580535,-708.73782226,0.00019773,2]
[357573812,1744187580557,-770.65,0.00019942,2]
[357573813,1744187580578,-264.92067383,0.00019973,2]
[357573814,1744187580598,-2941.0,0.00019973,2]
[357573815,1744187580618,-500.0,0.00019973,2]
[357573816,1744187580638,-500.0,0.00019973,2]
[357573817,1744187580658,-500.0,0.00019973,2]
[357573818,1744187580679,-458.5206263,0.0001999,2]
[357573819,1744187580701,-310.89209883,0.00019999,2]
[357573820,1744187580723,-328.03091189,0.00019999,2]
[357573821,1744187580744,-2060.0,0.0002,2]
[357573822,1744187580766,-198429.59437389,0.0002,2]
[357573823,1744187583735,427.77777,0.00032,120]
[357573829,1744187639894,-203.48971953,0.000199,2]
[357573830,1744187639915,-4879.74006051,0.000199,2]
[357573831,1744187639936,-621.68773512,0.00019973,2]
[357573832,1744187639956,-500.0,0.00019973,2]
[357573833,1744187639976,-326.33714145,0.00019973,2]
[357573834,1744187639996,-850.0,0.00019999,2]
[357573835,1744187640019,-686981.74534339,0.0002,2]
[357573842,1744187696898,-504.05263074,0.00019973,2]
[357573843,1744187696920,-91473.94736926,0.0002,2]
[357573862,1744187854961,-1115.0,0.0002,4]
[357573869,1744187959636,150.0,0.0004408,120]
[357573870,1744187966452,-531.0,0.0002,4]
[357573876,1744188000377,160.32672616,0.0004408,30]
[357573881,1744188054017,-1000.0,0.00033865,30]
[357573882,1744188054049,-1000.0,0.00034127,30]
[357573883,1744188054081,-1000.0,0.00034541,30]
[357573884,1744188054113,-1000.0,0.00034806,30]
[357573885,1744188054146,-152.42,0.00034867,120]
[357573888,1744188119743,1060.22,0.0004408,30]
[357573896,1744188189849,1999.99999999,0.00044089,120]
[357573898,1744188209190,4179.09692856,0.00044089,120]
[357573899,1744188232542,1500.0,0.00044089,120]
[357573900,1744188244235,1000.0,0.00044089,120]
[357573902,1744188263883,427.77777,0.00032,120]
[357573908,1744188404975,-822.0,0.0002,4]
[357573909,1744188405113,-254.75446055,0.00019701,2]
[357573918,1744188549027,427.77777,0.00032,120]
[357573922,1744188570509,427.77784,0.00032,120]
[357573925,1744188585719,427.77777,0.00032,120]
[357573935,1744188631328,-2421.092099,0.00019725,2]
[357573936,1744188631338,-11.3444665,0.00019825,2]
[357573937,1744188631351,-238.6555335,0.00019825,2]
[357573938,1744188631366,-250.0,0.00019896,2]
[357573939,1744188631375,-3922.95516706,0.000199,2]
[357573940,1744188631388,-336.66692717,0.000199,2]
[357573941,1744188631400,-5240.77970577,0.000199,2]
[357573942,1744188631411,-151.0,0.00019999,2]
[357573943,1744188631421,-2338.72029423,0.00019999,2]
[357573968,1744188631879,-962.3588002,0.00019999,2]
[357573970,1744188631890,-356.0,0.00019999,2]
[357573971,1744188631900,-6058.49371398,0.0002,2]
[357573974,1744188631911,-1541.29204,0.0002,2]
[357573976,1744188631923,-15264.8,0.0002,2]
[357573978,1744188631935,-359.189994,0.0002,2]
[357573982,1744188631963,-1515.29438932,0.0002,2]
[357573985,1744188631987,-774.20532,0.0002,2]
[357573987,1744188631999,-4063.11003202,0.0002,2]
[357574036,1744188637625,-2467.88684442,0.0002,2]
[357574037,1744188638152,-542.42193796,0.0002,2]
[357574038,1744188638184,-34.68235389,0.0002,2]
[357574039,1744188638265,-121.50184256,0.0002,2]
[357574054,1744188639920,-3768.891,0.0002,2]
[357574055,1744188640003,-12462.83845155,0.0002,2]
[357574056,1744188640013,-3105.80134,0.0002,4]
[357574057,1744188640028,-3000.0,0.0002,4]
[357574058,1744188640039,-1489.40000003,0.0002,4]
[357574067,1744188642839,-90708.54026128,0.0002,4]
[357574068,1744188642848,-175.0,0.0002,2]
[357574069,1744188642858,-175.0,0.0002,2]
[357574070,1744188642868,-175.0,0.0002,2]
[357574071,1744188642939,-1204.55463694,0.0002001,2]
[357574072,1744188642949,-3365.14969447,0.00020194,2]
[357574073,1744188642958,-500.0,0.00020247,2]
[357574074,1744188642968,-500.0,0.00020411,2]
[357574075,1744188642978,-500.0,0.00020438,2]
[357574076,1744188642987,-1621.09075983,0.000207,2]
[357574077,1744188642997,-2354.88071018,0.00021,2]
[357574078,1744188643007,-1847.23212737,0.00021,2]
[357574079,1744188643016,-300.0,0.00021,2]
[357574080,1744188643025,-150.69,0.00021116,2]
[357574081,1744188643035,-150.69,0.00021124,2]
[357574082,1744188643044,-150.69,0.00021133,2]
[357574083,1744188643054,-150.69,0.00021141,2]
[357574084,1744188643064,-150.69,0.00021149,2]
[357574085,1744188643074,-150.69,0.00021157,2]
[357574086,1744188643083,-150.69,0.00021165,2]
[357574087,1744188643093,-150.69,0.00021173,2]
[357574088,1744188643103,-150.69,0.00021181,2]
[357574089,1744188643114,-150.69,0.00021189,2]
[357574090,1744188643123,-150.69,0.00021197,2]
[357574091,1744188643132,-150.69,0.00021206,2]
[357574092,1744188643142,-150.69,0.00021214,2]
[357574093,1744188643154,-150.69,0.00021222,2]
[357574094,1744188643164,-1852.42,0.00021585,2]
[357574095,1744188643174,-177.9,0.00021677,2]
[357574096,1744188643183,-762.08,0.00021772,2]
[357574097,1744188643192,-250.0,0.0002178,2]
[357574098,1744188643201,-376.27844952,0.00022107,2]
[357574099,1744188643211,-157.91,0.00022197,2]
[357574100,1744188643221,-165.88,0.00022278,2]
[357574101,1744188643230,-505.54285196,0.00022291,2]
[357574102,1744188643239,-500.0,0.00022291,2]
[357574103,1744188643249,-150.0,0.00022331,2]
[357574104,1744188643257,-206.81145497,0.00022456,2]
[357574105,1744188643267,-618.11885499,0.00022456,2]
[357574106,1744188643276,-300.0,0.00022539,2]
[357574107,1744188643286,-217.62446918,0.00022561,2]
[357574108,1744188643296,-229.62163833,0.00022561,2]
[357574109,1744188643305,-29999.99,0.00022562,2]
[357574110,1744188643314,-166.63,0.00022788,2]
[357574111,1744188643324,-175.08,0.00022972,2]
[357574112,1744188643334,-350.0,0.00023,2]
[357574113,1744188643344,-161.44,0.0002321,2]
[357574114,1744188643355,-427.55,0.00023231,2]
[357574115,1744188643366,-152.42,0.00023245,2]
[357574116,1744188643376,-1371.48,0.00023347,2]
[357574117,1744188643385,-1000.0,0.00023347,2]
[357574118,1744188643395,-250.0,0.00023352,2]
[357574119,1744188643404,-200.0,0.00023551,2]
[357574120,1744188643414,-696.24,0.00023563,2]
[357574121,1744188643423,-200.0,0.00023595,7]
[357574122,1744188643433,-23900.0,0.00023669,2]
[357574123,1744188643443,-174.24,0.00023836,2]
[357574124,1744188643453,-762.08,0.00024036,2]
[357574125,1744188643462,-258.42196846,0.00024124,2]
[357574126,1744188643472,-150.0,0.00024173,2]
[357574127,1744188643482,-166.68,0.00024331,2]
[357574128,1744188643491,-300.0,0.00024584,2]
[357574129,1744188643501,-466.0,0.00024767,2]
[357574130,1744188643510,-537.89519334,0.00024773,2]
[357574131,1744188643519,-500.0,0.00024773,2]
[357574132,1744188643529,-500.0,0.00024773,2]
[357574133,1744188643538,-159.79009103,0.00024873,2]
[357574134,1744188643547,-500.0,0.00024873,2]
[357574135,1744188643556,-771.27290888,0.00025,2]
[357574136,1744188643565,-256.23727756,0.00025,2]
[357574137,1744188643575,-400.0,0.00025,2]
[357574138,1744188643584,-621.54234118,0.00025,2]
[357574139,1744188643593,-1757.75564848,0.00025,2]
[357574140,1744188643602,-20980.44923574,0.0002501,2]
[357574141,1744188643611,-150.0,0.00025543,2]
[357574142,1744188643620,-299.99,0.00025786,12]
[357574143,1744188643630,-150.99,0.00025786,2]
[357574144,1744188643638,-300.0,0.00025954,2]
[357574145,1744188643649,-1000.0,0.00026266,2]
[357574146,1744188643658,-762.08,0.000263,2]
[357574147,1744188643668,-166.63,0.00026549,2]
[357574148,1744188643676,-465.696,0.00026575,2]
[357574149,1744188643685,-2042.0,0.00026575,2]
[357574150,1744188643694,-1324.0,0.00026575,2]
[357574151,1744188643704,-717.717,0.00026575,2]
[357574152,1744188643713,-1278.0,0.00026575,2]
[357574153,1744188643722,-384.019,0.00026575,2]
[357574154,1744188643731,-3958.0,0.00026575,2]
[357574155,1744188643740,-151.0,0.00026575,2]
[357574156,1744188643750,-851.0,0.00026575,2]
[357574157,1744188643759,-156.73,0.00026849,2]
[357574158,1744188643769,-164.76,0.00026849,2]
[357574159,1744188643778,-243.61,0.00026849,2]
[357574160,1744188643787,-150.0,0.00026913,2]
[357574161,1744188643796,-450.0,0.00027,2]
[357574162,1744188643806,-349.08,0.00027397,2]
[357574163,1744188643815,-420.0,0.000274,2]
[357574164,1744188643824,-500.0,0.0002777,5]
[357574165,1744188643833,-150.0,0.00028283,2]
[357574166,1744188643842,-762.08,0.00028564,2]
[357574167,1744188643851,-258.42196842,0.00028587,2]
[357574168,1744188643860,-349.08,0.00028767,2]
[357574169,1744188643869,-1000.0,0.00029184,2]
[357574170,1744188643878,-394.396,0.00029575,2]
[357574171,1744188643887,-1429.78,0.00029575,2]
[357574172,1744188643896,-150.0,0.00029652,2]
[357574173,1744188643906,-150.0,0.0003,2]
[357574174,1744188643915,-9919.70698214,0.00030127,3]
[357574175,1744188643924,-349.08,0.00030137,2]
[357574176,1744188643933,-500.0,0.00030252,5]
[357574177,1744188643943,-158.88643086,0.00030252,5]
[357574178,1744188643952,-1860.0,0.00030352,5]
[357574179,1744188643961,-500.0,0.00030352,5]
[357574180,1744188643971,-762.08,0.00030828,2]
[357574181,1744188643980,-230.24886597,0.00031022,2]
[357574182,1744188643990,-349.08,0.00031507,2]
[357574183,1744188643999,-500.0,0.00032,2]
[357574184,1744188644009,-500.0,0.00032,5]
[357574185,1744188644018,-500.0,0.00032,7]
[357574186,1744188644027,-500.0,0.00032,10]
[357574187,1744188644036,-200.0,0.00032,2]
[357574188,1744188644046,-1000.0,0.00032102,2]
[357574189,1744188644055,-9919.70698214,0.00032112,3]
[357574190,1744188644065,-243.61,0.00032646,2]
[357574191,1744188644074,-1371.48,0.00032686,2]
[357574192,1744188644083,-349.08,0.00032877,2]
[357574193,1744188644093,-420.77370257,0.000329,2]
[357574194,1744188644103,-258.42196842,0.00033049,2]
[357574195,1744188644112,-762.08,0.00033092,2]
[357574196,1744188644121,-200.0,0.00033151,2]
[357574197,1744188644131,-157.91,0.00033296,2]
[357574198,1744188644140,-165.88,0.00033417,2]
[357574199,1744188644150,-1760.0,0.00034139,2]
[357574200,1744188644159,-683.19656509,0.00034802,2]
[357574201,1744188644168,-2282.6849113,0.00034878,2]
[357574202,1744188644177,-4091.3487842,0.00034878,2]
[357574203,1744188644187,-9919.70698214,0.00034916,3]
[357574204,1744188644196,-500.0,0.00034957,5]
[357574205,1744188644205,-500.0,0.00034957,5]
[357574206,1744188644214,-500.0,0.00034957,5]
[357574207,1744188644224,-500.0,0.00034957,5]
[357574208,1744188644233,-503.59884024,0.00034957,5]
[357574209,1744188644242,-506.29712266,0.00034957,5]
[357574210,1744188644251,-500.0,0.00034973,5]
[357574211,1744188644261,-9919.70698214,0.0003499,3]
[357574212,1744188644270,-150.0,0.00035,2]
[357574213,1744188644279,-19822.66377323,0.00035,4]
[357574214,1744188644289,-1000.0,0.00035021,2]
[357574215,1744188644298,-159.6576448,0.000351,5]
[357574216,1744188644307,-762.08,0.00035356,2]
[357574217,1744188644317,-500.0,0.00035363,5]
[357574218,1744188644326,-1000.0,0.00035568,30]
[357574219,1744188644335,-683.19656505,0.00035591,2]
[357574220,1744188644344,-9919.70698214,0.00035606,3]
[357574221,1744188644356,-2000.0,0.00035616,120]
[357574222,1744188644367,-2000.0,0.00035616,120]
[357574223,1744188644376,-621.09676279,0.00035616,120]
[357574224,1744188644386,-1675.94,0.00035671,120]
[357574225,1744188644396,-9919.70698214,0.0003598,3]
[357574226,1744188644406,-29759.1209464,0.0003599,3]
[357574227,1744188644415,-56714.41093365,0.00036,2]
[357574228,1744188644425,-9919.70698214,0.00036126,3]
[357574229,1744188644435,-5005.571,0.00036146,44]
[357574230,1744188644444,-683.19656505,0.00036379,2]
[357574231,1744188644454,-1539.0,0.000365,7]
[357574232,1744188644463,-683.19656505,0.00037168,2]
[357574233,1744188644474,-9919.70698214,0.0003719,4]
[357574234,1744188644484,-967.71379128,0.000372,103]
[357574235,1744188644493,-967.71379125,0.000372,103]
[357574236,1744188644502,-967.71379125,0.000372,103]
[357574237,1744188644512,-967.71379125,0.000372,103]
[357574238,1744188644521,-2406.7559849,0.00037442,4]
[357574239,1744188644531,-258.42196842,0.00037512,2]
[357574240,1744188644540,-762.08,0.0003762,2]
[357574241,1744188644550,-167.82506,0.000378,2]
[357574242,1744188644559,-174.24,0.00037877,2]
[357574243,1744188644568,-683.19656505,0.00037957,2]
[357574244,1744188644577,-9919.70698214,0.0003798,4]
[357574245,1744188644586,-9919.70698214,0.0003799,4]
[357574246,1744188644595,-30003.24703353,0.00038,2]
[357574247,1744188644605,-9919.70698214,0.00038336,4]
[357574248,1744188644614,-151.55,0.00038336,2]
[357574249,1744188644623,-9919.70698214,0.00038346,4]
[357574250,1744188644632,-2188.93038078,0.00038346,4]
[357574251,1744188644641,-924.97556243,0.00038356,15]
[357574252,1744188644650,-924.97556243,0.00038356,15]
[357574253,1744188644659,-924.97556243,0.00038356,15]
[357574254,1744188644668,-924.97556243,0.00038356,15]
[357574255,1744188644682,-924.97556243,0.00038356,15]
[357574256,1744188644690,-924.97556243,0.00038356,15]
[357574257,1744188644699,-924.97556243,0.00038356,15]
[357574258,1744188644708,-924.97556243,0.00038356,15]
[357574259,1744188644718,-924.97556243,0.00038356,15]
[357574260,1744188644726,-924.97556243,0.00038356,15]
[357574261,1744188644735,-924.97556243,0.00038356,15]
[357574262,1744188644744,-924.97556243,0.00038356,15]
[357574263,1744188644754,-924.97556243,0.00038356,15]
[357574264,1744188644762,-924.97556243,0.00038356,15]
[357574265,1744188644772,-924.97556243,0.00038356,15]
[357574266,1744188644780,-924.97556243,0.00038356,15]
[357574267,1744188644790,-924.97556243,0.00038356,15]
[357574268,1744188644799,-924.97556243,0.00038356,15]
[357574269,1744188644811,-235.84635659,0.000384,33]
[357574270,1744188644821,-243.61,0.00038443,2]
[357574271,1744188644830,-9919.70698214,0.0003858,4]
[357574272,1744188644840,-2188.93038078,0.0003858,4]
[357574273,1744188644849,-8872.22884745,0.000386,2]
[357574274,1744188644858,-683.19656505,0.00038745,2]
[357574275,1744188644867,-19839.4139643,0.00038829,4]
[357574276,1744188644877,-6566.79114234,0.00038829,4]
[357574277,1744188644886,-45685.4391313,0.00038839,2]
[357574278,1744188644895,-9919.70698214,0.00038855,4]
[357574279,1744188644904,-2188.93038078,0.00038899,4]
[357574280,1744188644914,-9919.70698214,0.00039446,4]
[357574281,1744188644923,-683.19656505,0.00039534,2]
[357574282,1744188644932,-300.0,0.000396,14]
[357574283,1744188644941,-700.0,0.000397,14]
[357574284,1744188644951,-500.0,0.00039726,15]
[357574285,1744188644960,-430.61748511,0.00039726,15]
[357574286,1744188644969,-1100.0,0.000398,14]
[357574287,1744188644978,-762.08,0.00039884,2]
[357574288,1744188644987,-2188.93038078,0.0003989,4]
[357574289,1744188644996,-201.38452485,0.000399,13]
[357574290,1744188645005,-223.0,0.000399,2]
[357574291,1744188645015,-179.38916892,0.000399,2]
[357574292,1744188645024,-163.60525166,0.000399,13]
[357574293,1744188645033,-1500.0,0.000399,14]
[357574294,1744188645042,-19839.4139643,0.0003997,4]
[357574295,1744188645051,-4377.86076156,0.0003997,4]
[357574296,1744188645060,-504.25401958,0.00039973,5]
[357574297,1744188645070,-49598.5349107,0.0003998,4]
[357574298,1744188645079,-26267.1645694,0.0003998,4]
[357574299,1744188645088,-28456.0949501,0.0003999,4]
[357574300,1744188645098,-507.34817768,0.0003999,7]
[357574301,1744188645108,-151.55,0.0003999,2]
[357574302,1744188645118,-151.55,0.0003999,2]
[357574303,1744188645127,-150.0,0.00039999,2]
[357574304,1744188645136,-150.0,0.00039999,2]
[357574305,1744188645145,-150.0,0.00039999,2]
[357574306,1744188645154,-150.0,0.00039999,2]
[357574307,1744188645163,-150.0,0.00039999,2]
[357574308,1744188645172,-189.5,0.00039999,2]
[357574309,1744188645182,-189.5,0.00039999,2]
[357574310,1744188645191,-33544.47966398,0.0004,2]
[357574311,1744188645220,-3968.72111761,0.0004,2]
[357574336,1744188645547,-864.20477591,0.0004,2]
[357574341,1744188645851,-772.27,0.000199,2]
[357574342,1744188646058,-81.3077545,0.000199,2]
[357574343,1744188646092,-1.37379018,0.000199,2]
[357574345,1744188705099,-2246.16169189,0.0001499,2]
[357574347,1744188742250,200.0,0.00044089,30]
[357574348,1744188742883,207.4,0.00044089,30]
[357574349,1744188743517,207.4,0.00044089,30]
[357574350,1744189003607,29999.99,0.00033049,30]
[357574351,1744189030838,299.99,0.00033049,30]
[357574438,1744189637261,151.0,0.00044098,30]
[357574439,1744189637880,156.587,0.00044098,30]
[357574440,1744189638520,156.587,0.00044098,30]
[357574441,1744189646661,200.0,0.00044098,30]
[357574442,1744189647274,207.4,0.00044098,30]